fUST/lending_fUST_20250119
["ID","MTS","AMOUNT","RATE_DAILY","PERIOD"]
[349519316,1737272899436,-2660.0,0.0002929,120]
[349519317,1737272899464,-1000.0,0.000294,120]
[349519318,1737272899499,-151.0,0.0003,120]
[349519319,1737272899527,-702.2798718,0.0003,120]
[349519320,1737272899555,-1000.0,0.0003,120]
[349519321,1737272899585,-403.244661,0.0003,120]
[349519322,1737272899611,-200.0,0.0003,120]
[349519323,1737272899639,-5000.0,0.0003,120]
[349519324,1737272899667,-151.0,0.0003,120]
[349519325,1737272899695,-151.24074467,0.0003,120]
[349519326,1737272899723,-3179.0,0.0003,120]
[349519327,1737272899755,-50000.0,0.0003,120]
[349519328,1737272899783,-436.35,0.0003019,120]
[349519329,1737272899812,-151.0,0.00031096,120]
[349519330,1737272899839,-151.0,0.00031315,120]
[349519331,1737272899865,-436.407,0.0003139,120]
[349519332,1737272899893,-1700.934281,0.00031963,120]
[349519333,1737272899920,-500.0,0.00032,120]
[349519334,1737272899947,-151.0,0.00032192,120]
[349519335,1737272899977,-3009.451,0.000325,120]
[349519336,1737272900005,-3009.451,0.000325,120]
[349519337,1737272900031,-3009.452,0.000325,120]
[349519338,1737272900057,-3009.451,0.000325,120]
[349519339,1737272900086,-3009.452,0.000325,120]
[349519340,1737272900113,-436.375,0.0003259,120]
[349519341,1737272900140,-151.0,0.0003263,120]
[349519342,1737272900167,-500.0,0.00033,120]
[349519343,1737272900193,-368.0,0.00033075,120]
[349519344,1737272900220,-151.0,0.00033288,120]
[349519345,1737272900248,-436.353,0.0003379,120]
[349519346,1737272900274,-151.0,0.00033945,120]
[349519347,1737272900300,-1000.0,0.00034,120]
[349519348,1737272900326,-151.0,0.00034384,120]
[349519349,1737272900352,-9035.08,0.000349,120]
[349519350,1737272900377,-436.354,0.0003499,120]
[349519351,1737272900403,-33000.0,0.00035,120]
[349519352,1737272900428,-6320.60810988,0.00035,120]
[349519353,1737272900454,-4998.20101458,0.00035,120]
[349519354,1737272900480,-50000.0,0.00035,120]
[349519355,1737272900507,-500.0,0.00035,120]
[349519356,1737272900531,-200.0,0.00035,120]
[349519357,1737272900556,-5000.0,0.00035,120]
[349519358,1737272900581,-200.0,0.00035,120]
[349519359,1737272900607,-200.0,0.00035,120]
[349519360,1737272900632,-200.0,0.00035,120]
[349519361,1737272900656,-200.0,0.00035,120]
[349519362,1737272900682,-200.0,0.00035,120]
[349519363,1737272900708,-308.89944,0.00035,120]
[349519364,1737272900733,-972.78260523,0.00035,120]
[349519365,1737272900759,-266.08331238,0.00035,120]
[349519366,1737272900783,-2033.02327404,0.00035,120]
[349519367,1737272900808,-557439.12950024,0.00035,120]
[349519368,1737272900834,-60322.66542489,0.00035,120]
[349519369,1737272900859,-151.0,0.0003526,120]
[349519370,1737272900884,-151.0,0.00035479,120]
[349519371,1737272900909,-1609.07,0.00035616,120]
[349519372,1737272900934,-1609.07,0.00035616,120]
[349519373,1737272900960,-1609.07,0.00035616,120]
[349519374,1737272900985,-1609.07,0.00035616,120]
[349519375,1737272901012,-1609.07,0.00035616,120]
[349519376,1737272901039,-1609.07,0.00035616,120]
[349519377,1737272901064,-1609.07,0.00035616,120]
[349519378,1737272901090,-1609.07,0.00035616,120]
[349519379,1737272901114,-1609.07,0.00035616,120]
[349519380,1737272901140,-1609.07,0.00035616,120]
[349519381,1737272901165,-1609.07,0.00035616,120]
[349519382,1737272901190,-1609.07,0.00035616,120]
[349519383,1737272901216,-1609.07,0.00035616,120]
[349519384,1737272901243,-1609.07,0.00035616,120]
[349519385,1737272901271,-1609.07,0.00035616,120]
[349519386,1737272901298,-1609.07,0.00035616,120]
[349519387,1737272901324,-1609.07,0.00035616,120]
[349519388,1737272901349,-1609.07,0.00035616,120]
[349519389,1737272901374,-1609.07,0.00035616,120]
[349519390,1737272901400,-1609.07,0.00035616,120]
[349519391,1737272901546,-1609.07,0.00035616,120]
[349519392,1737272901572,-1609.07,0.00035616,120]
[349519393,1737272901598,-1609.07,0.00035616,120]
[349519394,1737272901625,-1609.1794501,0.00035616,120]
[349519395,1737272901650,-524.726508,0.00036,120]
[349519396,1737272901676,-1000.0,0.00036,120]
[349519397,1737272901701,-386.82274464,0.00036,120]
[349519398,1737272901727,-436.446,0.0003619,120]
[349519399,1737272901756,-47432.64079932,0.00036248,120]
[349519400,1737272909756,-5795.17404288,0.00036248,120]
[349519401,1737272909788,-281.18235881,0.00036493,120]
[349519402,1737272909819,-31350.4363921,0.000365,120]
[349519403,1737272909852,-1700.934281,0.0003653,120]
[349519404,1737272909883,-151.0,0.00036575,120]
[349519405,1737272909915,-151.0,0.00036575,120]
[349519406,1737272909946,-436.433,0.0003739,120]
[349519407,1737272909978,-63775.16580114,0.00037484,120]
[349519408,1737272910010,-500.0,0.000375,120]
[349519409,1737272910042,-151.0,0.00037671,120]
[349519410,1737272910071,-151.0,0.0003789,120]
[349519411,1737272910100,-1000.0,0.00038,120]
[349519412,1737272910127,-1000.0,0.00038,120]
[349519413,1737272910156,-100000.0,0.00038,120]
[349519414,1737272910186,-12671.80102231,0.00038248,120]
[349519521,1737272982490,500.0,0.00023087,120]
[349519522,1737272983244,500.0,0.00023087,120]
[349519523,1737272984015,500.0,0.00023087,120]
[349519524,1737272984817,500.0,0.00023087,120]
[349519525,1737272985568,500.0,0.00023087,120]
[349519526,1737272986341,503.38,0.00023087,120]
[349519529,1737273003193,422.03548781,0.00024,120]
[349519564,1737273032741,-158.2,0.00019211,2]
[349519565,1737273032751,-168.312993,0.00019405,2]
[349519566,1737273032760,-219.1353694,0.00019828,2]
[349519567,1737273032769,-500.0,0.00020274,2]
[349519568,1737273032778,-178.362798,0.00020447,2]
[349519569,1737273032788,-6809.0868723,0.00020537,2]
[349519570,1737273032797,-300.0,0.00020866,2]
[349519571,1737273032806,-7.16818829,0.00020867,2]
[349519572,1737273032826,-1008.20300998,0.00020867,2]
[349519603,1737273038618,-8274.919218,0.00020867,2]
[349519604,1737273038630,-15609.70958373,0.00020867,2]
[349519605,1737273038640,-201.1473842,0.0002097,2]
[349519606,1737273038650,-160.8511797,0.00021042,2]
[349519607,1737273038659,-163.7011852,0.00021142,2]
[349519608,1737273038669,-1081.66538823,0.00021446,2]
[349519609,1737273038678,-154.25,0.00021446,2]
[349519610,1737273038688,-152.0,0.00021806,2]
[349519611,1737273038697,-762.19902891,0.00021817,2]
[349519612,1737273038707,-3165.9888852,0.000219,3]
[349519613,1737273038716,-500.0,0.00021917,3]
[349519614,1737273038725,-500.0,0.00021917,3]
[349519615,1737273038735,-500.0,0.00021917,3]
[349519616,1737273038744,-500.0,0.00021917,3]
[349519617,1737273038754,-500.0,0.00021917,3]
[349519618,1737273038764,-500.0,0.00021917,3]
[349519619,1737273038773,-500.0,0.00021917,3]
[349519620,1737273038782,-500.0,0.00021917,3]
[349519621,1737273038792,-500.0,0.00021917,3]
[349519622,1737273038801,-501.54478043,0.00021917,3]
[349519623,1737273038810,-502.1781277,0.00021917,3]
[349519624,1737273038819,-501.50332111,0.00021917,3]
[349519625,1737273038829,-500.0,0.00021917,3]
[349519626,1737273038838,-500.0,0.00021917,3]
[349519627,1737273038847,-500.0,0.00021917,3]
[349519628,1737273038855,-500.0,0.00021917,3]
[349519629,1737273038865,-500.0,0.00021917,3]
[349519630,1737273038874,-500.0,0.00021917,3]
[349519631,1737273038883,-500.0,0.00021917,3]
[349519632,1737273038892,-500.0,0.00021917,3]
[349519633,1737273038902,-500.0,0.00021917,3]
[349519634,1737273038911,-500.0,0.00021917,3]
[349519635,1737273038920,-500.0,0.00021917,3]
[349519636,1737273038930,-504.6716345,0.00021917,3]
[349519637,1737273038940,-504.49095722,0.00021917,3]
[349519638,1737273038949,-500.0,0.00021917,3]
[349519639,1737273038958,-508.45668982,0.00021917,3]
[349519640,1737273038968,-500.0,0.00021917,3]
[349519641,1737273038977,-500.0,0.00021917,3]
[349519642,1737273038987,-500.66926476,0.00021917,3]
[349519643,1737273038997,-500.0,0.00021917,3]
[349519644,1737273039009,-501.29341448,0.00021917,3]
[349519645,1737273039018,-909.42,0.00021917,3]
[349519646,1737273039027,-500.0,0.00021917,3]
[349519647,1737273039037,-502.4400366,0.00021917,3]
[349519648,1737273039046,-500.0,0.00021917,3]
[349519649,1737273039055,-500.0,0.00021917,3]
[349519650,1737273039064,-475.10342369,0.00021917,3]
[349519651,1737273039073,-504.50367071,0.00021917,3]
[349519652,1737273039083,-500.0,0.00021917,3]
[349519653,1737273039094,-500.0,0.00021917,3]
[349519654,1737273039103,-500.0,0.00021917,3]
[349519655,1737273039112,-502.09692297,0.00021917,3]
[349519656,1737273039121,-503.06842754,0.00021917,3]
[349519657,1737273039130,-589.91300702,0.00021917,3]
[349519658,1737273039139,-500.0,0.00021917,3]
[349519659,1737273039148,-500.0,0.00021917,3]
[349519660,1737273039158,-503.13950756,0.00021917,3]
[349519661,1737273039167,-502.63116786,0.00021917,2]
[349519662,1737273039177,-500.0,0.00021917,3]
[349519663,1737273039187,-500.0,0.00021917,3]
[349519664,1737273039196,-500.0,0.00021917,3]
[349519665,1737273039206,-500.0,0.00021917,3]
[349519666,1737273039215,-500.0,0.00021917,3]
[349519667,1737273039225,-500.0,0.00021917,3]
[349519668,1737273039234,-500.0,0.00021917,3]
[349519669,1737273039243,-500.0,0.00021917,3]
[349519670,1737273039252,-265.9487614,0.00021917,3]
[349519671,1737273039262,-1897.37,0.00021917,3]
[349519672,1737273039271,-502.51624626,0.00021917,3]
[349519673,1737273039280,-502.89132438,0.00021917,3]
[349519674,1737273039290,-500.0,0.00021917,3]
[349519675,1737273039299,-623.66,0.00021917,3]
[349519676,1737273039309,-152.38452465,0.00021917,3]
[349519677,1737273039318,-500.0,0.00021917,3]
[349519678,1737273039327,-501.04734465,0.00021917,3]
[349519679,1737273039337,-502.78556046,0.00021917,3]
[349519680,1737273039350,-501.09807446,0.00021917,3]
[349519681,1737273039360,-503.42011598,0.00021917,3]
[349519682,1737273039370,-502.74182284,0.00021917,3]
[349519683,1737273039379,-503.09566793,0.00021917,3]
[349519684,1737273039388,-500.0,0.00021917,3]
[349519685,1737273039398,-500.0,0.00021917,3]
[349519686,1737273039407,-904.5,0.00021917,3]
[349519687,1737273039416,-500.0,0.00021917,3]
[349519688,1737273039426,-500.0,0.00021917,3]
[349519689,1737273039435,-503.3278172,0.00021917,3]
[349519690,1737273039444,-744.39,0.00021917,3]
[349519691,1737273039453,-502.81137741,0.00021917,3]
[349519692,1737273039462,-503.38226792,0.00021917,3]
[349519693,1737273039471,-503.548066,0.00021917,3]
[349519694,1737273039480,-500.0,0.00021917,3]
[349519695,1737273039489,-500.0,0.00021917,3]
[349519696,1737273039499,-500.0,0.00021917,3]
[349519697,1737273039508,-500.0,0.00021917,3]
[349519698,1737273039517,-500.0,0.00021917,3]
[349519699,1737273039527,-500.0,0.00021917,3]
[349519700,1737273039536,-500.0,0.00021917,3]
[349519701,1737273039545,-502.53665992,0.00021917,3]
[349519702,1737273039554,-502.9098523,0.00021917,3]
[349519703,1737273039563,-500.0,0.00021917,3]
[349519704,1737273039572,-500.0,0.00021917,3]
[349519705,1737273039581,-500.0,0.00021917,3]
[349519706,1737273039590,-500.0,0.00021917,3]
[349519707,1737273039599,-536.75422543,0.00021917,3]
[349519708,1737273039608,-500.0,0.00021917,3]
[349519709,1737273039617,-500.0,0.00021917,3]
[349519710,1737273039626,-500.0,0.00021917,3]
[349519711,1737273039636,-500.0,0.00021917,3]
[349519712,1737273039645,-500.0,0.00021917,3]
[349519713,1737273039655,-500.0,0.00021917,3]
[349519714,1737273039664,-500.0,0.00021917,3]
[349519715,1737273039673,-501.30419704,0.00021917,3]
[349519716,1737273039682,-648.67,0.00021917,3]
[349519717,1737273039691,-308.53669766,0.00021917,3]
[349519718,1737273039700,-500.0,0.00021917,3]
[349519719,1737273039709,-500.0,0.00021917,3]
[349519720,1737273039718,-502.30980501,0.00021917,3]
[349519721,1737273039727,-500.0,0.00021917,3]
[349519722,1737273039736,-500.0,0.00021917,3]
[349519723,1737273039745,-500.0,0.00021917,3]
[349519724,1737273039754,-500.0,0.00021917,3]
[349519725,1737273039763,-500.0,0.00021917,3]
[349519726,1737273039772,-500.0,0.00021917,3]
[349519727,1737273039781,-500.0,0.00021917,3]
[349519728,1737273039790,-502.72609648,0.00021917,3]
[349519729,1737273039799,-500.0,0.00021917,3]
[349519730,1737273039808,-500.0,0.00021917,3]
[349519731,1737273039817,-500.0,0.00021917,3]
[349519732,1737273039826,-1551.82,0.00021917,3]
[349519733,1737273039836,-502.26380794,0.00021917,3]
[349519734,1737273039846,-762.19902889,0.00021919,2]
[349519735,1737273039855,-1000.0,0.00022,22]
[349519736,1737273039864,-3165.98888511,0.00022003,3]
[349519737,1737273039874,-762.19902889,0.00022021,2]
[349519738,1737273039883,-500.0,0.00022054,3]
[349519739,1737273039892,-595.78261997,0.00022054,3]
[349519740,1737273039902,-500.0,0.00022054,3]
[349519741,1737273039911,-500.0,0.00022054,3]
[349519742,1737273039920,-500.0,0.00022054,3]
[349519743,1737273039930,-500.0,0.00022054,3]
[349519744,1737273039939,-478.59770711,0.00022054,3]
[349519745,1737273039947,-500.0,0.00022054,3]
[349519746,1737273039956,-500.0,0.00022054,3]
[349519747,1737273039965,-500.0,0.00022054,3]
[349519748,1737273039974,-257.54651759,0.00022054,3]
[349519749,1737273039983,-187.7885143,0.00022054,3]
[349519750,1737273039992,-500.0,0.00022054,3]
[349519751,1737273040003,-909.42,0.00022054,3]
[349519752,1737273040015,-500.0,0.00022054,3]
[349519753,1737273040024,-500.0,0.00022054,3]
[349519754,1737273040033,-500.0,0.00022054,3]
[349519755,1737273040042,-500.0,0.00022054,3]
[349519756,1737273040052,-500.0,0.00022054,3]
[349519757,1737273040062,-500.0,0.00022054,3]
[349519758,1737273040071,-500.0,0.00022054,3]
[349519759,1737273040080,-500.0,0.00022054,3]
[349519760,1737273040090,-500.0,0.00022054,3]
[349519762,1737273040099,-306.15922286,0.00022054,3]
[349519763,1737273040109,-514.98161789,0.00022054,3]
[349519764,1737273040118,-500.0,0.00022054,3]
[349519765,1737273040127,-500.0,0.00022054,3]
[349519766,1737273040136,-500.0,0.00022054,3]
[349519767,1737273040146,-500.0,0.00022054,3]
[349519768,1737273040155,-1897.37,0.00022054,3]
[349519769,1737273040165,-623.66,0.00022054,3]
[349519770,1737273040176,-500.0,0.00022054,3]
[349519771,1737273040185,-904.5,0.00022054,3]
[349519772,1737273040195,-501.43794502,0.00022054,3]
[349519773,1737273040204,-500.0,0.00022054,3]
[349519774,1737273040214,-744.39,0.00022054,3]
[349519775,1737273040223,-500.0,0.00022054,3]
[349519776,1737273040233,-500.0,0.00022054,3]
[349519777,1737273040242,-500.0,0.00022054,3]
[349519778,1737273040251,-500.0,0.00022054,3]
[349519779,1737273040261,-500.0,0.00022054,3]
[349519786,1737273040365,-500.0,0.00022054,3]
[349519788,1737273040375,-500.0,0.00022054,3]
[349519790,1737273040385,-500.0,0.00022054,3]
[349519792,1737273040394,-500.0,0.00022054,3]
[349519794,1737273040403,-500.0,0.00022054,3]
[349519796,1737273040413,-222.99,0.00022054,3]
[349519798,1737273040422,-500.0,0.00022054,3]
[349519799,1737273040431,-500.0,0.00022054,3]
[349519801,1737273040440,-500.0,0.00022054,3]
[349519803,1737273040449,-648.67,0.00022054,3]
[349519805,1737273040459,-500.0,0.00022054,3]
[349519807,1737273040468,-500.0,0.00022054,3]
[349519809,1737273040477,-500.0,0.00022054,3]
[349519811,1737273040486,-500.0,0.00022054,3]
[349519813,1737273040496,-500.0,0.00022054,3]
[349519815,1737273040505,-500.0,0.00022054,3]
[349519817,1737273040514,-500.0,0.00022054,3]
[349519819,1737273040523,-500.0,0.00022054,3]
[349519820,1737273040532,-1551.82,0.00022054,3]
[349519821,1737273040542,-3165.98888511,0.00022107,3]
[349519822,1737273040551,-762.19902889,0.00022123,2]
[349519823,1737273040560,-191.37,0.00022189,2]
[349519824,1737273040570,-500.0,0.00022189,3]
[349519825,1737273040579,-500.0,0.00022189,3]
[349519826,1737273040588,-501.82912499,0.00022189,3]
[349519827,1737273040598,-500.0,0.00022189,3]
[349519828,1737273040607,-500.0,0.00022189,3]
[349519829,1737273040616,-500.0,0.00022189,3]
[349519830,1737273040625,-500.0,0.00022189,3]
[349519831,1737273040634,-500.0,0.00022189,3]
[349519832,1737273040643,-500.0,0.00022189,3]
[349519833,1737273040653,-500.0,0.00022189,3]
[349519834,1737273040663,-500.0,0.00022189,3]
[349519835,1737273040672,-500.0,0.00022189,3]
[349519836,1737273040681,-500.0,0.00022189,3]
[349519837,1737273040691,-500.0,0.00022189,3]
[349519838,1737273040700,-500.0,0.00022189,3]
[349519839,1737273040710,-202.92888916,0.00022189,3]
[349519840,1737273040719,-500.0,0.00022189,3]
[349519841,1737273040729,-500.0,0.00022189,3]
[349519842,1737273040739,-500.0,0.00022189,3]
[349519843,1737273040748,-500.0,0.00022189,3]
[349519844,1737273040758,-500.0,0.00022189,3]
[349519845,1737273040767,-500.0,0.00022189,3]
[349519846,1737273040777,-500.0,0.00022189,3]
[349519847,1737273040786,-500.0,0.00022189,3]
[349519848,1737273040796,-500.0,0.00022189,3]
[349519849,1737273040805,-500.0,0.00022189,3]
[349519851,1737273040814,-500.0,0.00022189,3]
[349519853,1737273040823,-500.0,0.00022189,3]
[349519855,1737273040832,-500.0,0.00022189,3]
[349519857,1737273040842,-500.0,0.00022189,3]
[349519858,1737273040851,-500.0,0.00022189,3]
[349519859,1737273040861,-500.0,0.00022189,3]
[349519860,1737273040870,-500.0,0.00022189,3]
[349519861,1737273040879,-500.0,0.00022189,3]
[349519862,1737273040889,-500.0,0.00022189,3]
[349519863,1737273040898,-500.0,0.00022189,3]
[349519864,1737273040907,-500.0,0.00022189,2]
[349519865,1737273040917,-500.0,0.00022189,3]
[349519866,1737273040927,-500.0,0.00022189,3]
[349519867,1737273040936,-500.0,0.00022189,3]
[349519868,1737273040945,-500.0,0.00022189,3]
[349519869,1737273040954,-500.0,0.00022189,3]
[349519870,1737273040963,-500.0,0.00022189,3]
[349519871,1737273040972,-464.25948287,0.00022189,3]
[349519872,1737273040981,-500.0,0.00022189,3]
[349519873,1737273040991,-500.0,0.00022189,3]
[349519874,1737273041001,-500.0,0.00022189,3]
[349519875,1737273041015,-500.0,0.00022189,3]
[349519876,1737273041024,-500.0,0.00022189,3]
[349519877,1737273041033,-500.0,0.00022189,3]
[349519878,1737273041043,-500.0,0.00022189,3]
[349519879,1737273041052,-500.0,0.00022189,3]
[349519880,1737273041061,-500.0,0.00022189,3]
[349519881,1737273041070,-500.0,0.00022189,3]
[349519882,1737273041081,-500.0,0.00022189,3]
[349519883,1737273041092,-500.0,0.00022189,3]
[349519884,1737273041101,-500.0,0.00022189,3]
[349519885,1737273041111,-5635.47,0.00022189,3]
[349519886,1737273041121,-258.45217038,0.00022189,3]
[349519887,1737273041144,-241.54782962,0.00022189,3]
[349519888,1737273041153,-500.0,0.00022189,3]
[349519889,1737273041163,-126.42799579,0.00022189,3]
[349519890,1737273041174,-373.57200421,0.00022189,3]
[349519891,1737273041183,-500.0,0.00022189,3]
[349519892,1737273041192,-500.0,0.00022189,3]
[349519893,1737273041201,-126.42799579,0.00022189,3]
[349519894,1737273041212,-373.57200421,0.00022189,3]
[349519895,1737273041221,-500.0,0.00022189,3]
[349519896,1737273041230,-500.0,0.00022189,3]
[349519897,1737273041239,-500.0,0.00022189,3]
[349519898,1737273041249,-500.0,0.00022189,3]
[349519899,1737273041259,-500.0,0.00022189,3]
[349519900,1737273041268,-500.0,0.00022189,3]
[349519901,1737273041277,-571.54,0.00022189,3]
[349519902,1737273041286,-312.79469999,0.00022189,3]
[349519903,1737273041297,-187.20530001,0.00022189,3]
[349519904,1737273041306,-500.0,0.00022189,3]
[349519905,1737273041315,-500.0,0.00022189,3]
[349519906,1737273041324,-500.0,0.00022189,3]
[349519907,1737273041333,-500.0,0.00022189,3]
[349519908,1737273041342,-500.0,0.00022189,3]
[349519909,1737273041351,-500.0,0.00022189,3]
[349519910,1737273041361,-5494.83991567,0.00022189,3]
[349519911,1737273041372,-611.556,0.00022189,3]
[349519915,1737273043625,-1729.56473828,0.0002087,2]
[349519916,1737273043634,-3000.81408433,0.00022189,3]
[349519918,1737273043643,-385.4145147,0.00022189,3]
[349519920,1737273043653,-500.0,0.00022189,3]
[349519922,1737273043662,-500.0,0.00022189,3]
[349519924,1737273043672,-500.0,0.00022189,3]
[349519926,1737273043681,-500.0,0.00022189,3]
[349519928,1737273043690,-500.0,0.00022189,3]
[349519930,1737273043700,-500.0,0.00022189,3]
[349519932,1737273043709,-555.18906251,0.00022189,3]
[349519934,1737273043718,-500.0,0.00022189,3]
[349519935,1737273043727,-500.0,0.00022189,3]
[349519936,1737273043737,-4010.57,0.00022189,3]
[349519937,1737273043746,-500.0,0.00022189,3]
[349519938,1737273043755,-500.0,0.0002219,3]
[349519939,1737273043765,-500.0,0.0002219,3]
[349519940,1737273043774,-500.0,0.0002219,3]
[349519941,1737273043784,-504.70023193,0.0002219,3]
[349519943,1737273043794,-500.0,0.0002219,3]
[349519944,1737273043804,-500.0,0.0002219,3]
[349519946,1737273043813,-508.34623923,0.0002219,3]
[349519948,1737273043822,-500.0,0.0002219,3]
[349519949,1737273043831,-500.0,0.0002219,3]
[349519951,1737273043840,-500.0,0.0002219,3]
[349519953,1737273043850,-500.0,0.0002219,3]
[349519955,1737273043859,-500.0,0.0002219,3]
[349519957,1737273043868,-500.0,0.0002219,3]
[349519959,1737273043878,-500.0,0.00022191,3]
[349519960,1737273043887,-500.0,0.00022191,3]
[349519961,1737273043896,-909.42,0.00022191,3]
[349519962,1737273043906,-500.0,0.00022191,3]
[349519963,1737273043915,-500.0,0.00022191,3]
[349519964,1737273043924,-500.0,0.00022191,3]
[349519965,1737273043933,-1897.37,0.00022191,3]
[349519966,1737273043943,-623.66,0.00022191,3]
[349519967,1737273043952,-904.5,0.00022191,3]
[349519969,1737273043963,-500.0,0.00022191,3]
[349519971,1737273043973,-744.39,0.00022191,3]
[349519973,1737273043983,-500.0,0.00022191,3]
[349519975,1737273043992,-500.0,0.00022191,3]
[349519977,1737273044001,-500.0,0.00022191,3]
[349519979,1737273044015,-500.0,0.00022191,3]
[349519980,1737273044024,-500.0,0.00022191,3]
[349519982,1737273044033,-500.0,0.00022191,3]
[349519984,1737273044043,-500.0,0.00022191,3]
[349519985,1737273044052,-500.0,0.00022191,3]
[349519986,1737273044062,-500.0,0.00022191,3]
[349519987,1737273044071,-500.0,0.00022191,3]
[349519988,1737273044081,-648.67,0.00022191,3]
[349519989,1737273044091,-500.0,0.00022191,3]
[349519991,1737273044101,-500.0,0.00022191,3]
[349519993,1737273044110,-500.0,0.00022191,3]
[349519995,1737273044119,-500.0,0.00022191,3]
[349519997,1737273044128,-500.0,0.00022191,3]
[349519999,1737273044138,-500.0,0.00022191,3]
[349520001,1737273044147,-1551.82,0.00022191,3]
[349520003,1737273044156,-3165.98888511,0.0002221,3]
[349520005,1737273044166,-452.29245417,0.00022225,2]
[349520009,1737273044194,-309.90657472,0.00022225,2]
[349520011,1737273044203,-2860.13987992,0.00022263,7]
[349520013,1737273044215,-3270.93075939,0.00022263,7]
[349520015,1737273044224,-213.51832849,0.00022299,2]
[349520017,1737273044234,-500.0,0.00022299,2]
[349520019,1737273044243,-597.99676126,0.00022299,2]
[349520021,1737273044252,-61251.65101894,0.000223,15]
[349520023,1737273044264,-453.16445598,0.000223,15]
[349520026,1737273044275,-611.57268813,0.000223,15]
[349520065,1737273046576,-1729.56473821,0.00021317,2]
[349520066,1737273046586,-410.23532179,0.000223,15]
[349520067,1737273151357,160.0,0.00022926,120]
[349520070,1737273211942,160.0,0.00022936,120]
[349520071,1737273443850,2301.60839534,0.00024,120]
[349520072,1737273477080,382.057962,0.00013973,2]
[349520074,1737273691357,160.0,0.00023664,120]
[349520075,1737273751868,160.0,0.00023357,120]
[349520076,1737273804833,9009.8630049,0.00023698,120]
[349520077,1737273816896,262.0,0.00024,120]
[349520078,1737273871958,160.0,0.00023403,120]
[349520079,1737273991655,160.0,0.00023522,120]
[349520081,1737274110982,160.0,0.00023553,120]
[349520083,1737274147314,1297.69,0.000167,2]
[349520090,1737274170794,160.0,0.00023712,120]
[349520110,1737274236235,-233.60300998,0.00018731,2]
[349520111,1737274236246,-4002.79063979,0.00019111,2]
[349520112,1737274236256,-3423.0424788,0.00019588,11]
[349520113,1737274236265,-374.88353719,0.0002,2]
[349520114,1737274236288,-646.192853,0.0002,2]
[349520115,1737274236302,-68.92360981,0.0002,2]
[349520116,1737274236312,-300.0,0.00020016,2]
[349520117,1737274236321,-12900.4071442,0.00020017,2]
[349520118,1737274236330,-500.0,0.00020274,2]
[349520119,1737274236340,-382.057962,0.00020447,2]
[349520120,1737274236350,-5170.7645093,0.00020745,2]
[349520121,1737274236359,-199.471522,0.00020909,2]
[349520122,1737274236368,-12159.83606121,0.00021366,2]
[349520123,1737274236378,-1395.81994896,0.00021391,2]
[349520125,1737274236387,-12159.83606121,0.00021491,2]
[349520126,1737274236398,-1090.0,0.000216,4]
[349520128,1737274236410,-496.25522372,0.00021695,2]
[349520129,1737274236420,-1395.81994894,0.00021772,2]
[349520130,1737274236430,-496.25522371,0.00021794,2]
[349520131,1737274236438,-420.0,0.00021795,2]
[349520132,1737274236448,-496.25522371,0.00021892,2]